bitfinex/quotes_BTCUSD_20241110
["timestamp","ask_amount","ask_price","bid_price","bid_amount"]
[1731275553430,0.0181816,79806.0,79805.0,0.005]
[1731275553431,0.0171816,79806.0,79805.0,0.005]
[1731275553636,0.0171816,79806.0,79805.0,0.59648173]
[1731275553837,0.0171816,79806.0,79805.0,0.59597429]
[1731275554920,0.0171816,79806.0,79805.0,0.69597429]
[1731275555120,0.01342569,79806.0,79805.0,0.69597429]
[1731275555415,0.03772302,79847.0,79821.0,0.1465]
[1731275555638,0.00043303,79847.0,79846.0,0.153241]
[1731275555865,0.00043303,79847.0,79846.0,0.0203519]
[1731275556107,0.12567203,79847.0,79846.0,0.0203519]
[1731275556759,0.12567203,79847.0,79842.0,0.002]
[1731275556760,0.00043303,79847.0,79842.0,0.00450468]
[1731275556983,0.00043303,79847.0,79846.0,0.0078248]
[1731275557161,0.12567203,79847.0,79846.0,0.02034448]
[1731275557409,0.00043303,79847.0,79846.0,0.17058548]
[1731275557628,0.00043303,79847.0,79846.0,0.04334448]
[1731275558050,0.00043303,79847.0,79846.0,0.02034448]
[1731275558266,4e-05,79850.0,79847.0,0.130238]
[1731275558515,4e-05,79850.0,79849.0,0.023]
[1731275558734,4e-05,79850.0,79849.0,0.02034448]
[1731275558942,0.125274,79850.0,79849.0,0.02284892]
[1731275559142,4e-05,79850.0,79849.0,0.02034448]
[1731275559345,0.125274,79850.0,79849.0,0.0078248]
[1731275559557,4e-05,79850.0,79849.0,0.0078248]
[1731275559705,0.125274,79850.0,79849.0,0.0078248]
[1731275560112,4e-05,79850.0,79849.0,0.15606068]
[1731275560317,0.125274,79850.0,79849.0,0.00782468]
[1731275560519,0.125274,79850.0,79849.0,0.02034501]
[1731275560693,0.125274,79850.0,79849.0,0.02034465]
[1731275561818,0.125274,79850.0,79849.0,0.00782468]
[1731275562259,0.120274,79850.0,79849.0,0.02034474]
[1731275562707,0.00071,79851.0,79849.0,0.02234474]
[1731275562922,0.00071,79851.0,79850.0,0.02034474]
[1731275564241,0.00071,79851.0,79600.0,0.26723748]
[1731275564242,0.125239,79848.0,79845.0,0.19081178]
[1731275564454,0.125239,79847.0,79846.0,0.12594221]
[1731275564669,0.00071,79851.0,79846.0,0.12594221]
[1731275564879,0.125235,79850.0,79846.0,0.12594221]
[1731275565098,0.00071,79851.0,79846.0,0.12594221]
[1731275565298,0.250469,79850.0,79846.0,0.12594221]
[1731275565501,0.00071,79851.0,79846.0,0.12594221]
[1731275565707,0.125239,79847.0,79846.0,0.12594221]
[1731275566720,0.250475,79848.0,79842.0,0.04163609]
[1731275566921,0.250487,79845.0,79843.0,0.01252011]
[1731275567122,0.00071,79851.0,79846.0,0.125239]
[1731275567326,0.00071,79851.0,79847.0,0.02817044]
[1731275567545,0.00071,79851.0,79848.0,0.16123151]
[1731275567746,0.00071,79851.0,79849.0,0.03599551]
[1731275568104,0.00071,79851.0,79850.0,0.16122951]
[1731275568257,0.00071,79851.0,79850.0,0.39017614]
[1731275568472,0.00071,79859.0,79856.0,0.002]
[1731275568706,0.00071,79859.0,79857.0,0.16193772]
[1731275568887,0.00071,79859.0,79858.0,0.03599551]
[1731275569261,0.12593,79859.0,79858.0,0.03599551]
[1731275569640,0.12593,79859.0,79857.0,0.12594221]
[1731275569849,0.12593,79859.0,79858.0,0.03599032]
[1731275571571,0.125225,79856.0,79855.0,0.00686531]
[1731275571784,0.125228,79854.0,79853.0,0.19081178]
[1731275571994,0.125228,79854.0,79849.0,0.00686531]
[1731275571995,0.00071,79859.0,79849.0,0.00686531]
[1731275572196,0.00071,79859.0,79842.0,0.19081178]
[1731275572197,0.125231,79852.0,79851.0,0.19081178]
[1731275572407,0.12439046,79852.0,79851.0,0.19081178]
[1731275572615,0.12439046,79852.0,79843.0,0.002]
[1731275572616,0.250444,79858.0,79843.0,0.04250597]
[1731275572827,0.00071,79859.0,79852.0,0.002]
[1731275573037,0.00071,79859.0,79856.0,0.002]
[1731275573479,0.125931,79859.0,79856.0,0.002]
[1731275573689,0.00071,79859.0,79857.0,0.12594221]
[1731275574137,0.00071,79859.0,79858.0,0.34314609]
[1731275574355,0.00071,79859.0,79858.0,0.58358408]
[1731275574565,0.00071,79859.0,79858.0,0.29836421]
[1731275575029,0.00071,79859.0,79858.0,0.17314221]
[1731275575270,0.00071,79859.0,79858.0,0.19814221]
[1731275575477,0.00071,79859.0,79858.0,0.15094221]
[1731275575677,0.00071,79859.0,79858.0,0.14894221]
[1731275576048,0.00071,79859.0,79858.0,0.12594221]
[1731275576473,0.00071,79859.0,79855.0,0.04253444]
[1731275576677,0.00071,79859.0,79856.0,0.12594221]
[1731275576884,0.125222,79858.0,79856.0,0.12594221]
[1731275577088,0.125223,79857.0,79856.0,0.12594221]
[1731275577288,0.125232,79852.0,79851.0,0.00688005]
[1731275577488,0.125232,79852.0,79848.0,0.023]
[1731275577489,0.00071,79859.0,79849.0,0.00688005]
[1731275577729,0.125231,79852.0,79851.0,0.19081178]
[1731275578157,0.125222,79858.0,79851.0,0.19081178]
[1731275578359,0.12523,79853.0,79851.0,0.19081178]
[1731275578563,0.12523,79853.0,79850.0,0.002]
[1731275578717,0.00071,79859.0,79850.0,0.002]
[1731275578975,0.125222,79858.0,79851.0,0.125233]
[1731275579185,0.00071,79859.0,79850.0,0.002]
[1731275579356,0.125236,79849.0,79848.0,0.04015805]
[1731275579714,0.125234,79851.0,79848.0,0.14159113]
[1731275579916,0.125234,79851.0,79849.0,0.02253918]
[1731275580124,0.125234,79851.0,79850.0,0.01564892]
[1731275581381,0.375666,79858.0,79850.0,0.01564892]
[1731275581582,0.125228,79854.0,79853.0,0.00689026]
[1731275581773,0.125228,79854.0,79853.0,0.03505811]
[1731275582181,0.00071,79859.0,79853.0,0.03505811]
[1731275582390,0.00071,79859.0,79854.0,0.01251893]
[1731275582629,0.125234,79850.0,79849.0,0.00689026]
[1731275582870,0.00071,79859.0,79849.0,0.0125188]
[1731275583089,0.00071,79859.0,79850.0,0.13846101]
[1731275583303,0.125233,79851.0,79850.0,0.13846101]
[1731275583501,0.00071,79859.0,79850.0,0.14535142]
[1731275583653,0.125229,79854.0,79851.0,0.00782459]
[1731275583864,0.125231,79853.0,79852.0,0.02034354]
[1731275584666,0.03716869,79878.0,79868.0,0.155206]
[1731275584921,0.000709,79880.0,79868.0,0.61238759]
[1731275585122,0.000709,79880.0,79868.0,0.41149175]
[1731275585339,0.000709,79880.0,79868.0,0.40149175]
[1731275585971,0.000709,79880.0,79868.0,0.39949175]
[1731275586167,0.000203,79869.0,79868.0,0.40149175]
[1731275586786,0.000203,79869.0,79868.0,0.40649175]
[1731275586995,0.000203,79869.0,79868.0,0.39649175]
[1731275587210,0.000203,79869.0,79868.0,0.44198792]
[1731275588105,0.000203,79869.0,79868.0,0.43998792]
[1731275588568,0.000203,79869.0,79868.0,0.43498792]
[1731275589016,0.000203,79869.0,79868.0,0.43698792]
[1731275589434,0.000203,79869.0,79868.0,0.16928575]
[1731275589655,0.000203,79869.0,79868.0,0.29449175]
[1731275590534,0.000203,79869.0,79868.0,0.29649175]
[1731275590736,0.000203,79869.0,79868.0,0.29449175]
[1731275590947,0.000203,79869.0,79868.0,0.29649175]
[1731275591593,0.000203,79869.0,79868.0,0.16928575]
[1731275591811,0.000203,79869.0,79868.0,0.29449175]
[1731275592184,0.000203,79869.0,79868.0,0.29649175]
[1731275592430,0.000203,79869.0,79868.0,0.29449175]
[1731275593073,0.000203,79869.0,79868.0,0.29649175]
[1731275593524,0.000203,79869.0,79868.0,0.29449175]
[1731275593743,0.000203,79869.0,79868.0,0.29649175]
[1731275594020,0.000203,79869.0,79868.0,0.29449175]
[1731275594448,0.000203,79869.0,79868.0,0.16928575]
[1731275595313,0.000203,79869.0,79868.0,0.1337668]
[1731275595946,0.125408,79869.0,79868.0,0.00782459]
[1731275596154,0.125408,79869.0,79859.0,0.00782293]
[1731275596155,0.250413,79868.0,79859.0,0.00782293]
[1731275596382,0.000203,79869.0,79860.0,0.00782293]
[1731275596626,0.125217,79861.0,79856.0,0.002]
[1731275596841,0.250428,79864.0,79859.0,0.00782357]
[1731275597052,0.250416,79867.0,79860.0,0.00782357]
[1731275597274,0.000203,79869.0,79866.0,0.19081178]
[1731275597481,0.000203,79869.0,79868.0,0.127206]
[1731275597651,0.000203,79869.0,79868.0,0.25314821]
[1731275597884,0.000203,79869.0,79868.0,0.133765]
[1731275598126,0.000203,79869.0,79868.0,0.25314821]
[1731275598304,0.1,79870.0,79869.0,0.234505]
[1731275598305,0.099203,79870.0,79869.0,0.234505]
[1731275598509,0.099203,79870.0,79869.0,0.51348985]
[1731275600482,0.099203,79870.0,79869.0,0.52600354]
[1731275600694,0.099203,79870.0,79869.0,0.52400354]
[1731275600906,0.099203,79870.0,79869.0,0.52600354]
[1731275601537,0.099203,79870.0,79869.0,0.52600243]
[1731275601926,0.099203,79870.0,79869.0,0.52400243]
[1731275602378,0.099203,79870.0,79869.0,0.63600243]
[1731275604978,0.099203,79870.0,79869.0,0.63600109]
[1731275605213,0.099203,79870.0,79869.0,0.66161973]
[1731275606626,0.099203,79870.0,79869.0,0.65961973]
[1731275607065,0.099203,79870.0,79869.0,0.66161973]
[1731275607563,0.099203,79870.0,79869.0,0.65961973]
[1731275608320,0.099203,79870.0,79869.0,0.66161973]
[1731275609014,0.099203,79870.0,79869.0,0.63600103]
[1731275609889,0.098203,79870.0,79869.0,0.63600103]
[1731275610278,0.098203,79870.0,79869.0,0.49078116]
[1731275610805,0.098203,79870.0,79869.0,0.35078116]
[1731275611010,0.098203,79870.0,79869.0,0.26396796]
[1731275611225,0.098203,79870.0,79869.0,0.26596796]
[1731275611636,0.098203,79870.0,79869.0,0.26396796]
[1731275611871,0.099042,79870.0,79869.0,0.26596796]
[1731275612011,0.099042,79870.0,79869.0,0.28696796]
[1731275612215,0.094042,79870.0,79869.0,0.28696858]
[1731275612411,0.094042,79870.0,79869.0,0.39896858]
[1731275612615,0.094042,79870.0,79869.0,0.41148278]
[1731275614251,0.094042,79870.0,79869.0,0.55670265]
[1731275614464,0.094042,79870.0,79869.0,0.55470265]
[1731275614671,0.094042,79870.0,79869.0,0.55670265]
[1731275615426,0.094042,79870.0,79869.0,0.55470265]
[1731275615631,0.094042,79870.0,79869.0,0.55670265]
[1731275616417,0.094042,79870.0,79869.0,0.61044497]
[1731275616648,0.094042,79870.0,79869.0,0.55670108]
[1731275617047,0.094042,79870.0,79869.0,0.56580395]
[1731275617660,0.094042,79870.0,79869.0,0.3982254]
[1731275618020,0.094042,79870.0,79869.0,0.38058408]
[1731275618248,0.094042,79870.0,79869.0,0.28258408]
[1731275618569,0.094042,79870.0,79869.0,0.27348121]
[1731275618761,0.094042,79870.0,79869.0,0.14627621]
[1731275619229,0.094042,79870.0,79869.0,0.02033694]
[1731275619430,0.10005956,79870.0,79869.0,0.0078219]
[1731275619631,0.10016246,79870.0,79869.0,0.0078219]
[1731275619815,0.22536546,79870.0,79869.0,0.0078219]
[1731275620011,0.125205,79869.0,79868.0,0.001678]
[1731275620371,0.12529695,79869.0,79868.0,0.001678]
[1731275620560,0.20289695,79869.0,79868.0,0.001678]
[1731275622030,9.195e-05,79869.0,79868.0,0.001678]
[1731275622263,9.195e-05,79869.0,79868.0,0.26264972]
[1731275622589,0.094042,79870.0,79869.0,0.127205]
[1731275622796,0.094042,79870.0,79869.0,0.26097072]
[1731275623065,0.094042,79870.0,79869.0,0.13576572]
[1731275623278,0.094042,79870.0,79869.0,0.26097072]
[1731275623710,0.094042,79870.0,79869.0,0.13576572]
[1731275624148,0.094042,79870.0,79869.0,0.00982351]
[1731275624405,0.094042,79870.0,79869.0,0.00782351]
[1731275624620,0.094042,79870.0,79869.0,0.25897072]
[1731275624827,0.10021074,79870.0,79869.0,0.25897072]
[1731275625046,0.094042,79870.0,79869.0,0.25897072]
[1731275625258,0.094042,79870.0,79869.0,0.4777825]
[1731275625476,0.094042,79870.0,79869.0,0.2994879]
[1731275625668,0.094042,79870.0,79869.0,0.28697072]
[1731275626427,0.094042,79870.0,79869.0,0.27914721]
[1731275626877,0.094042,79870.0,79869.0,0.2994829]
[1731275627089,0.094042,79870.0,79869.0,0.30148276]
[1731275627298,0.094042,79870.0,79869.0,0.47998276]
[1731275627499,0.094042,79870.0,79869.0,0.48998276]
[1731275627720,0.094042,79870.0,79869.0,0.46764721]
[1731275627855,0.094042,79870.0,79869.0,0.48998225]
[1731275628341,0.194042,79870.0,79869.0,0.48798225]
[1731275628556,0.194042,79870.0,79869.0,0.48998225]
[1731275628758,0.194042,79870.0,79869.0,0.48798225]
[1731275629860,0.194042,79870.0,79869.0,0.48998225]
[1731275630427,0.194042,79870.0,79869.0,0.46964721]
[1731275630641,0.194042,79870.0,79869.0,0.48998101]
[1731275630877,0.194042,79870.0,79869.0,0.4967038]
[1731275631626,0.194042,79870.0,79869.0,0.5056224]
[1731275632453,0.194042,79870.0,79869.0,0.5036224]
[1731275632855,0.194042,79870.0,79869.0,0.5056224]
[1731275633254,0.194042,79870.0,79869.0,0.5036224]
[1731275633461,0.194042,79870.0,79869.0,0.5056224]
[1731275633735,0.194042,79870.0,79869.0,0.46964721]
[1731275633947,0.194042,79870.0,79869.0,0.50562042]
[1731275634913,0.194042,79870.0,79869.0,0.50729842]
[1731275635732,0.194042,79870.0,79869.0,0.50529842]
[1731275635942,0.194042,79870.0,79869.0,0.50729842]
[1731275637282,0.194042,79870.0,79869.0,0.51639171]
[1731275638707,0.194042,79870.0,79869.0,0.51439171]
[1731275639293,0.194042,79870.0,79869.0,0.43589171]
[1731275639511,0.194042,79870.0,79869.0,0.43789171]
[1731275640774,0.194042,79870.0,79869.0,0.43789212]
[1731275641133,0.194042,79870.0,79869.0,0.43589295]
[1731275641342,0.194042,79870.0,79869.0,0.43789209]
[1731275641565,0.194042,79870.0,79869.0,0.43589209]
[1731275641775,0.194042,79870.0,79869.0,0.42589209]
[1731275641968,0.194042,79870.0,79869.0,0.40289209]
[1731275642192,0.194042,79870.0,79869.0,0.40489209]
[1731275642692,0.194042,79870.0,79869.0,0.38425038]
[1731275642894,0.194042,79870.0,79869.0,0.25904538]
[1731275643095,0.194042,79870.0,79869.0,0.02201222]
[1731275643770,0.194042,79870.0,79869.0,0.27566347]
[1731275643948,0.194042,79870.0,79869.0,0.27315943]
[1731275644219,0.194042,79870.0,79869.0,0.27515943]
[1731275644629,0.194042,79870.0,79869.0,0.37515943]
[1731275644867,0.174042,79870.0,79869.0,0.39552095]
[1731275645077,0.174042,79870.0,79869.0,0.37515943]
[1731275646338,0.174042,79870.0,79869.0,0.40315943]
[1731275646562,0.174042,79870.0,79869.0,0.38282521]
[1731275646779,0.174042,79870.0,79869.0,0.41880236]
[1731275646977,0.174042,79870.0,79869.0,0.42880236]
[1731275647437,0.174881,79870.0,79869.0,0.42880236]
[1731275647654,0.174881,79870.0,79869.0,0.43352236]
[1731275647864,0.174881,79870.0,79869.0,0.42880236]
[1731275648085,0.129881,79870.0,79869.0,0.42880236]
[1731275649071,0.129881,79870.0,79869.0,0.42680236]
[1731275649274,0.129881,79870.0,79869.0,0.42880236]
[1731275650138,0.129881,79870.0,79869.0,0.42880089]
[1731275650698,0.129881,79870.0,79869.0,0.39580089]
[1731275650924,0.129881,79870.0,79869.0,0.41880089]
[1731275651126,0.129881,79870.0,79869.0,0.41380089]
[1731275651347,0.129881,79870.0,79869.0,0.42052099]
[1731275651715,0.129881,79870.0,79869.0,0.41880089]
[1731275652099,0.129881,79870.0,79869.0,0.41680089]
[1731275652340,0.129881,79870.0,79869.0,0.41880089]
[1731275652543,0.129881,79870.0,79869.0,0.42552099]
[1731275652670,0.129881,79870.0,79869.0,0.42052099]
[1731275652887,0.129881,79870.0,79869.0,0.42552099]
[1731275653104,0.129881,79870.0,79869.0,0.41380089]
[1731275653467,0.129881,79870.0,79869.0,0.41380209]
[1731275653708,0.129881,79870.0,79869.0,0.39080209]
[1731275653938,0.129881,79870.0,79869.0,0.35282521]
[1731275654141,0.129881,79870.0,79869.0,0.37316104]
[1731275654344,0.13658797,79870.0,79869.0,0.27316104]
[1731275654776,0.13658797,79870.0,79869.0,0.02201383]
[1731275655471,0.13658797,79870.0,79869.0,0.14721883]
[1731275655899,0.129881,79870.0,79869.0,0.17021883]
[1731275656108,0.129881,79870.0,79869.0,0.18586178]
[1731275656442,0.129881,79870.0,79869.0,0.45702386]
[1731275656652,0.129881,79870.0,79869.0,0.55702386]
[1731275657053,0.129881,79870.0,79869.0,0.55702218]
[1731275658240,0.129881,79870.0,79869.0,0.55902218]
[1731275659370,0.129881,79870.0,79869.0,0.55702218]
[1731275659512,0.129881,79870.0,79869.0,0.56402218]
[1731275659713,0.129881,79870.0,79869.0,0.56202218]
[1731275659939,0.129881,79870.0,79869.0,0.56402218]
[1731275660363,0.129881,79870.0,79869.0,0.55620106]
[1731275660531,0.129881,79870.0,79869.0,0.56402216]
[1731275660741,0.129881,79870.0,79869.0,0.41380229]
[1731275660949,0.129881,79870.0,79869.0,0.41180229]
[1731275661125,0.129881,79870.0,79869.0,0.41380229]
[1731275661331,0.119881,79870.0,79869.0,0.42053255]
[1731275661544,0.119881,79870.0,79869.0,0.26118208]
[1731275661896,0.119881,79870.0,79869.0,0.38912429]
[1731275662944,0.119881,79870.0,79869.0,0.41212429]
[1731275663931,0.074881,79870.0,79869.0,0.39648339]
[1731275664365,0.074881,79870.0,79869.0,0.39648326]
[1731275664777,0.157181,79870.0,79869.0,0.02033605]
[1731275665168,0.16346131,79870.0,79869.0,0.02033605]
[1731275665516,0.16334974,79870.0,79869.0,0.00782156]
[1731275665730,0.16346131,79870.0,79869.0,0.00782156]
[1731275665945,0.08116131,79870.0,79869.0,0.25896877]
[1731275666149,0.08116131,79870.0,79869.0,0.29448326]
[1731275666387,0.074881,79870.0,79869.0,0.29448326]
[1731275666720,0.074881,79870.0,79869.0,0.29648326]
[1731275666917,0.074881,79870.0,79869.0,0.29448326]
[1731275667187,0.074881,79870.0,79869.0,0.54170313]
[1731275667450,0.11976169,79887.0,79869.0,0.54170313]
[1731275667451,0.78599284,79898.0,79887.0,0.500706]
[1731275667606,0.78599284,79898.0,79885.0,0.002]
[1731275667607,0.72980102,79898.0,79897.0,0.14521987]
[1731275667830,0.72980102,79898.0,79897.0,0.34143028]
[1731275668021,0.72980102,79898.0,79897.0,0.34925201]
[1731275668220,0.72980102,79898.0,79897.0,0.36176678]
[1731275669221,0.72980102,79898.0,79897.0,0.35447454]
[1731275669818,0.72980102,79898.0,79897.0,0.20925467]
[1731275670020,0.72980102,79898.0,79897.0,0.1967399]
[1731275670855,0.72980102,79898.0,79897.0,0.19673621]
[1731275671234,0.72980102,79898.0,79897.0,0.29967842]
[1731275671825,0.69727935,79898.0,79897.0,0.29967842]
[1731275672229,0.69727935,79898.0,79897.0,0.17373621]
[1731275672466,0.005,79911.0,79897.0,0.17373621]
[1731275672467,0.000709,79930.0,79915.0,0.125132]
[1731275672664,0.18774054,79925.0,79915.0,0.25889263]
[1731275672902,0.005,79924.0,79915.0,0.25889263]
[1731275674136,0.000709,79927.0,79915.0,0.26139494]
[1731275674300,0.18774054,79924.0,79915.0,0.26139494]
[1731275674531,0.18774054,79924.0,79915.0,0.29439884]
[1731275674722,0.18774054,79924.0,79915.0,0.29439573]
[1731275674880,0.18774054,79924.0,79915.0,0.37339573]
[1731275675084,0.18774054,79923.0,79915.0,0.35307421]
[1731275675285,0.18774054,79923.0,79915.0,0.41334448]
[1731275675674,0.000709,79927.0,79915.0,0.51334448]
[1731275675984,0.18774054,79925.0,79916.0,0.248131]
[1731275676195,0.000709,79927.0,79917.0,0.123]
[1731275676550,0.18774054,79941.0,79934.0,0.125103]
[1731275676753,0.18774054,79941.0,79934.0,0.16842441]
[1731275676976,0.000709,79950.0,79934.0,0.60543025]
[1731275677188,0.000709,79950.0,79934.0,0.45770885]
[1731275677698,0.000709,79950.0,79934.0,0.41364428]
[1731275677894,0.002,79945.0,79934.0,0.14541745]
[1731275678114,0.002,79945.0,79934.0,0.21248202]
[1731275678340,0.000709,79950.0,79934.0,0.20860165]
[1731275678536,0.000709,79950.0,79934.0,0.47860843]
[1731275678537,0.18774054,79948.0,79934.0,0.47860843]
[1731275678896,0.18774054,79948.0,79947.0,0.148082]
[1731275679078,0.18274054,79948.0,79947.0,0.30996516]
[1731275679323,0.002,79964.0,79947.0,0.30996516]
[1731275679324,0.396915,79999.0,79958.0,0.75049251]
[1731275679515,0.000709,79996.0,79995.0,0.148007]
[1731275679728,0.000709,79996.0,79995.0,0.32916782]
[1731275680362,0.000709,79996.0,79995.0,0.35617684]
[1731275680594,0.000709,79996.0,79995.0,0.39584914]
[1731275680799,0.005709,79996.0,79995.0,0.16094795]
[1731275681036,0.005709,79996.0,79974.0,0.005]
[1731275681037,0.005,79984.0,79974.0,0.75049251]
[1731275681228,0.005,79984.0,79983.0,0.75049251]
[1731275681480,0.005,79984.0,79983.0,0.13752248]
[1731275681705,0.005,79985.0,79983.0,0.03592757]
[1731275681892,0.005,79987.0,79984.0,0.91236229]
[1731275682100,0.01,79992.0,79991.0,0.125014]
[1731275682276,0.005,79990.0,79989.0,0.125017]
[1731275682502,0.005,79990.0,79989.0,0.16187163]
[1731275682663,0.01,79990.0,79989.0,0.03592942]
[1731275682860,0.135015,79990.0,79989.0,0.03592942]
[1731275683071,0.135015,79990.0,79989.0,0.02030793]
[1731275683270,0.14751803,79990.0,79989.0,0.02030793]
[1731275683649,0.14751803,79990.0,79989.0,0.02031056]
[1731275684084,0.005,79976.0,79975.0,0.01249995]
[1731275684286,0.13254003,79976.0,79975.0,0.01249995]
[1731275684508,0.005,79976.0,79975.0,0.18755744]
[1731275684726,0.125043,79972.0,79966.0,0.18755744]
[1731275684962,0.00250303,79971.0,79966.0,0.18755744]
[1731275685129,0.125048,79969.0,79959.0,0.0156272]
[1731275685382,0.00250303,79968.0,79967.0,0.18755744]
[1731275685605,0.005,79961.0,79951.0,0.00666436]
[1731275685801,0.005,79956.0,79953.0,0.18755744]
[1731275686015,0.005,79956.0,79955.0,0.12507]
[1731275686215,0.005,79964.0,79956.0,0.250137]
[1731275686328,0.005,79964.0,79962.0,0.125058]
[1731275686535,0.005,79964.0,79963.0,0.01562811]
[1731275686924,0.005,79964.0,79963.0,0.01562684]
[1731275687099,0.130056,79964.0,79963.0,0.01562684]
[1731275687274,0.00750303,79964.0,79963.0,0.01562684]
[1731275687541,0.004,79964.0,79963.0,0.01562684]
[1731275688635,0.129056,79964.0,79963.0,0.01562684]
[1731275688856,0.13155903,79964.0,79963.0,0.01562684]
[1731275689276,0.004,79964.0,79963.0,0.01562684]
[1731275689477,0.129056,79964.0,79963.0,0.01562684]
[1731275689695,0.129075,79952.0,79951.0,0.00666918]
[1731275689903,0.129082,79947.0,79946.0,0.18755744]
[1731275690116,0.129082,79947.0,79946.0,0.20318842]
[1731275690554,0.129082,79947.0,79946.0,0.01563098]
[1731275690959,0.004,79947.0,79946.0,0.01563098]
[1731275691179,0.01,79961.0,79946.0,0.14071498]
[1731275691180,0.004,79952.0,79946.0,0.14071498]
[1731275691401,0.004,79952.0,79944.0,0.250172]
[1731275691402,0.00250303,79957.0,79947.0,0.01563098]
[1731275691627,0.004,79961.0,79948.0,0.01563098]
[1731275691834,0.004,79961.0,79945.0,0.44439762]
[1731275691835,0.004,79961.0,79953.0,0.00666918]
[1731275692039,0.004,79953.0,79949.0,0.25102121]
[1731275692252,0.004,79953.0,79951.0,0.18755744]
[1731275692456,0.004,79953.0,79949.0,0.12594221]
[1731275692457,0.004,79953.0,79952.0,0.14070341]
[1731275693138,0.004,79953.0,79952.0,0.01562841]
[1731275693349,0.004,79998.0,79995.0,0.125007]
[1731275693790,0.004,79998.0,79995.0,0.14063142]
[1731275694227,0.13054,80000.0,79995.0,0.15312766]
[1731275694438,0.13054,80000.0,79995.0,0.36905401]
[1731275694660,0.13054,80000.0,79995.0,0.4353721]
[1731275694868,0.13054,80000.0,79995.0,0.43536291]
[1731275695114,0.13054,80000.0,79995.0,0.51798703]
[1731275695311,0.13054,80000.0,79995.0,0.49498703]
[1731275696175,0.13054,80000.0,79995.0,0.50279577]
[1731275696394,0.13054,80000.0,79995.0,0.52679577]
[1731275696824,0.13054,80000.0,79995.0,0.52579577]
[1731275697011,0.13054,80000.0,79995.0,0.50279577]
[1731275697555,0.13054,80000.0,79995.0,0.54611386]
[1731275697756,0.13054,80000.0,79995.0,0.28686942]
[1731275698065,0.13054,80000.0,79995.0,0.31086942]
[1731275698273,0.13054,80000.0,79995.0,0.27494921]
[1731275698473,0.13054,80000.0,79995.0,0.34910524]
[1731275698697,0.100709,79996.0,79995.0,0.34910524]
[1731275699491,0.06285603,80007.0,80006.0,0.001]
[1731275699701,0.06285603,80007.0,80006.0,0.31085342]
[1731275701208,0.06285603,80007.0,80006.0,0.16185579]
[1731275701467,0.06285603,80007.0,80006.0,0.14624119]
[1731275702338,0.06285603,80007.0,80006.0,0.18597601]
[1731275702571,0.06285603,80007.0,80006.0,0.14624119]
[1731275703053,0.06685603,80007.0,80006.0,0.14624119]
[1731275703474,0.06285603,80007.0,80006.0,0.14624119]
[1731275704324,0.06285603,80007.0,80006.0,0.13374951]
[1731275704543,0.04785603,80007.0,80006.0,0.13374951]
[1731275705409,0.17684503,80007.0,80006.0,0.0078073]
[1731275705633,0.17684503,80007.0,79995.0,0.04]
[1731275705634,0.004,79997.0,79996.0,0.00780939]
[1731275705858,0.004,79997.0,79996.0,0.1337516]
[1731275706283,0.129004,79997.0,79996.0,0.00780939]
[1731275706737,0.129004,79997.0,79981.0,0.01249651]
[1731275706738,0.0868,79996.0,79981.0,0.18755744]
[1731275706947,0.129028,79982.0,79981.0,0.18755744]
[1731275707376,0.129042,79973.0,79972.0,0.18755744]
[1731275707876,0.004,79963.0,79957.0,0.01250071]
[1731275708097,0.004,79963.0,79958.0,0.00781301]
[1731275708319,0.004,79956.0,79952.0,0.001676]
[1731275708538,0.004,79955.0,79952.0,0.001676]
[1731275709414,0.129073,79953.0,79952.0,0.001676]
[1731275710063,0.004,79964.0,79952.0,0.12761821]
[1731275710279,0.005,79974.0,79953.0,0.12594221]
[1731275710280,0.004,79955.0,79953.0,0.12594221]
[1731275710487,0.129073,79953.0,79952.0,0.001676]
[1731275712902,0.134073,79953.0,79952.0,0.001676]
[1731275713103,0.234073,79953.0,79952.0,0.001676]
[1731275714521,0.244073,79953.0,79952.0,0.001676]
[1731275715396,0.37001521,79953.0,79952.0,0.001676]
[1731275716040,0.58594156,79953.0,79952.0,0.001676]
[1731275716274,0.63424156,79953.0,79952.0,0.001676]
[1731275716706,0.019,79937.0,79936.0,0.18755744]
[1731275716911,0.144098,79937.0,79936.0,0.18755744]
[1731275717131,0.250175,79944.0,79928.0,0.18755744]
[1731275717132,0.129111,79929.0,79928.0,0.18755744]
[1731275717482,0.004,79929.0,79920.0,0.18897344]
[1731275717687,0.125123,79921.0,79920.0,0.18897344]
[1731275717886,0.125118,79924.0,79920.0,0.18897344]
[1731275718132,0.129123,79921.0,79920.0,0.001416]
[1731275718335,0.004,79921.0,79920.0,0.001416]
[1731275722812,0.129123,79921.0,79920.0,0.001416]
[1731275723040,0.134123,79921.0,79920.0,0.001416]
[1731275723995,0.144123,79921.0,79920.0,0.001416]
[1731275727117,0.129123,79921.0,79920.0,0.001416]
[1731275728507,0.25506521,79921.0,79920.0,0.001416]
[1731275728691,0.43796521,79921.0,79920.0,0.001416]
[1731275729180,0.43796521,79921.0,79904.0,0.18755744]
[1731275729181,0.140148,79905.0,79904.0,0.18755744]
[1731275729799,0.125159,79898.0,79891.0,0.12517]
[1731275729990,0.125159,79898.0,79891.0,0.125169]
[1731275730133,0.2503,79904.0,79892.0,0.250336]
[1731275730134,0.005,79904.0,79892.0,0.250336]
[1731275730340,0.25029,79908.0,79888.0,0.43790744]
[1731275730341,0.015,79908.0,79896.0,0.250323]
[1731275730544,0.005,79905.0,79893.0,0.250332]
[1731275730797,0.015,79908.0,79899.0,0.125157]
[1731275730999,0.015,79908.0,79893.0,0.250332]
[1731275731000,0.125152,79903.0,79896.0,0.125162]
[1731275731225,0.005,79907.0,79898.0,0.250318]
[1731275731398,0.125148,79905.0,79897.0,0.001676]
[1731275731596,0.005,79907.0,79897.0,0.001676]
[1731275731799,0.250297,79905.0,79897.0,0.001676]
[1731275731978,0.005,79907.0,79897.0,0.001676]
[1731275732181,0.005,79904.0,79897.0,0.001676]
[1731275732395,0.125159,79898.0,79897.0,0.001676]
[1731275732779,0.500606,79903.0,79897.0,0.001676]
[1731275732780,0.005,79903.0,79897.0,0.001676]
[1731275732996,0.125159,79898.0,79897.0,0.001676]